bitfinex/quotes_SOLUSD_20241126
["timestamp","ask_amount","ask_price","bid_price","bid_amount"]
[1732582499410,23.776884,236.41,236.4,0.4899952]
[1732582499609,36.59822534,236.41,236.4,0.4899952]
[1732582500419,38.12615081,236.41,236.4,0.4899952]
[1732582500604,48.12615081,236.41,236.4,0.4899952]
[1732582501189,58.12615081,236.41,236.4,0.4899952]
[1732582501815,60.94749215,236.41,236.4,0.4899952]
[1732582502017,70.94749215,236.41,236.4,0.4899952]
[1732582502198,60.94749215,236.41,236.4,0.4899952]
[1732582502521,58.12615081,236.41,236.4,0.4899952]
[1732582502723,12.82134134,236.41,236.4,0.4899952]
[1732582504197,12.82134134,236.41,236.26,12.82134134]
[1732582504198,35.64268268,236.41,236.26,12.82134134]
[1732582504520,12.82134134,236.34,236.26,12.82134134]
[1732582505311,23.776884,236.33,236.26,12.82134134]
[1732582505523,12.82134134,236.38,236.3,12.82134134]
[1732582505816,134.5,236.43,236.23,14.816]
[1732582505817,12.82134134,236.4,236.32,12.82134134]
[1732582506418,12.82134134,236.36,236.23,14.816]
[1732582506593,12.82134134,236.36,236.27,12.82134134]
[1732582507011,23.776884,236.35,236.27,12.82134134]
[1732582507621,12.82134134,236.38,236.29,12.82134134]
[1732582508625,12.82134134,236.38,236.31,12.82134134]
[1732582509337,12.82134134,236.38,236.29,12.82134134]
[1732582509643,12.82134134,236.36,236.27,17.05364134]
[1732582509822,23.776884,236.37,236.25,12.82134134]
[1732582509823,12.82134134,236.34,236.25,12.82134134]
[1732582510938,12.82134134,236.34,236.26,4.2326]
[1732582511150,23.776884,236.33,236.25,12.82134134]
[1732582511446,12.82134134,236.36,236.27,12.82134134]
[1732582511741,12.82134134,236.36,236.29,12.82134134]
[1732582512642,12.82134134,236.32,236.23,4.2331]
[1732582512845,12.82134134,236.32,236.22,30.6148]
[1732582512846,20.0,236.32,236.26,12.82134134]
[1732582513025,23.776884,236.35,236.28,12.82134134]
[1732582513223,10.0,236.45,236.24,4.2329]
[1732582513224,8.5986,236.46,236.32,12.82134134]
[1732582513543,12.82134134,236.41,236.32,12.82134134]
[1732582513952,12.82134134,236.45,236.36,12.82134134]
[1732582514238,12.82134134,236.45,236.38,12.82134134]
[1732582514438,12.82134134,236.47,236.38,12.82134134]
[1732582514820,12.82134134,236.45,236.38,12.82134134]
[1732582515017,12.82134134,236.45,236.38,4.2304]
[1732582516136,136.6141,236.51,236.29,31.8903]
[1732582516137,12.82134134,236.41,236.29,31.8903]
[1732582516449,23.776884,236.4,236.34,12.82134134]
[1732582516649,12.82134134,236.43,236.34,12.82134134]
[1732582516818,20.0,236.44,236.36,12.82134134]
[1732582517018,12.82134134,236.43,236.3,4.2317]
[1732582517231,12.82134134,236.43,236.34,12.82134134]
[1732582517635,12.82134134,236.43,236.36,12.82134134]
[1732582517826,23.776884,236.46,236.37,4.2306]
[1732582517827,12.82134134,236.45,236.37,4.2306]
[1732582518548,12.82134134,236.47,236.38,12.82134134]
[1732582519341,12.82134134,236.45,236.38,12.82134134]
[1732582519557,12.82134134,236.41,236.33,12.82134134]
[1732582519734,12.82134134,236.37,236.29,48.94364134]
[1732582520126,12.82134134,236.37,236.29,44.71164134]
[1732582520441,23.776884,236.36,236.29,44.71164134]
[1732582520632,12.82134134,236.39,236.29,44.71164134]
[1732582520834,23.776884,236.38,236.29,44.71164134]
[1732582521154,23.776884,236.38,236.29,48.94364134]
[1732582521334,23.776884,236.38,236.31,12.82134134]
[1732582521651,23.776884,236.4,236.31,12.82134134]
[1732582521853,12.82134134,236.41,236.31,12.82134134]
[1732582522159,12.82134134,236.41,236.33,12.82134134]
[1732582524150,23.776884,236.38,236.29,44.71164134]
[1732582524351,23.776884,236.38,236.29,48.94364134]
[1732582524542,23.776884,236.38,236.29,44.71164134]
[1732582524749,12.82134134,236.37,236.29,44.71164134]
[1732582525248,12.82134134,236.39,236.29,48.94364134]
[1732582525452,12.82134134,236.39,236.31,12.82134134]
[1732582525960,2.1148,236.43,236.31,12.82134134]
[1732582525961,23.776884,236.4,236.31,12.82134134]
[1732582526853,23.776884,236.4,236.31,17.05294134]
[1732582527565,12.82134134,236.38,236.31,17.05294134]
[1732582528046,12.82134134,236.38,236.31,4.2316]
[1732582528234,12.82134134,236.4,236.31,17.05294134]
[1732582528634,12.82134134,236.38,236.31,17.05294134]
[1732582529034,12.82134134,236.38,236.31,4.2316]
[1732582531153,12.82134134,236.4,236.31,12.82134134]
[1732582531651,12.82134134,236.4,236.32,4.2315]
[1732582532051,23.776884,236.44,236.33,12.82134134]
[1732582532249,12.82134134,236.42,236.33,12.82134134]
[1732582533747,12.82134134,236.42,236.34,4.2311]
[1732582535642,12.82134134,236.42,236.35,12.82134134]
[1732582536248,12.82134134,236.42,236.33,12.82134134]
[1732582537259,12.82134134,236.42,236.34,4.2311]
[1732582539277,23.8161,236.58,236.41,12.82134134]
[1732582539440,12.82134134,236.51,236.43,12.82134134]
[1732582539841,12.82134134,236.53,236.45,12.82134134]
[1732582540372,12.82134134,236.51,236.43,12.82134134]
[1732582541242,12.82134134,236.53,236.45,12.82134134]
[1732582541442,12.82134134,236.53,236.45,17.05044134]
[1732582541959,12.82134134,236.53,236.45,40.04164134]
[1732582542355,12.82134134,236.49,236.45,22.9912]
[1732582543372,12.82134134,236.47,236.41,4.2298]
[1732582543566,12.82134134,236.47,236.4,22.9912]
[1732582543772,12.82134134,236.47,236.4,27.2212]
[1732582544470,20.0,236.54,236.43,12.82134134]
[1732582544647,12.82134134,236.52,236.43,12.82134134]
[1732582545357,12.82134134,236.52,236.44,4.2294]
[1732582546365,12.82134134,236.54,236.45,22.11264134]
[1732582547670,12.82134134,236.54,236.46,4.229]
[1732582552465,12.82134134,236.54,236.48,4.2286]
[1732582553663,12.82134134,236.5,236.41,4.2299]
[1732582553884,12.82134134,236.46,236.4,22.9912]
[1732582554186,12.82134134,236.46,236.4,27.2213]
[1732582555688,12.82134134,236.5,236.42,12.82134134]
[1732582555989,12.82134134,236.54,236.44,12.82134134]
[1732582556361,12.82134134,236.52,236.44,12.82134134]
[1732582556561,12.82134134,236.54,236.44,12.82134134]
[1732582556982,12.82134134,236.54,236.45,4.2292]
[1732582559294,12.82134134,236.52,236.45,4.2292]
[1732582560600,12.82134134,236.5,236.41,4.2299]
[1732582560798,12.82134134,236.5,236.42,12.82134134]
[1732582561394,23.776884,236.59,236.41,4.2299]
[1732582561395,12.82134134,236.52,236.44,12.82134134]
[1732582562091,12.82134134,236.54,236.44,12.82134134]
[1732582562698,12.82134134,236.54,236.46,12.82134134]
[1732582564303,12.82134134,236.54,236.47,4.2288]
[1732582564901,12.82134134,236.5,236.45,4.2292]
[1732582565200,12.82134134,236.5,236.41,4.2299]
[1732582565813,12.82134134,236.5,236.42,12.82134134]
[1732582566404,12.82134134,236.5,236.43,4.2295]
[1732582566795,12.82134134,236.48,236.41,4.2297]
[1732582567216,12.82134134,236.48,236.4,22.9912]
[1732582567521,12.82134134,236.46,236.4,27.2213]
[1732582568923,12.82134134,236.48,236.4,27.2213]
[1732582569808,12.82134134,236.46,236.4,27.2213]
[1732582570126,23.776884,236.45,236.34,0.1]
[1732582570435,12.82134134,236.4,236.34,0.1]
[1732582571110,23.776884,236.45,236.34,4.331]
[1732582571111,12.82134134,236.42,236.34,4.331]
[1732582571424,12.82134134,236.4,236.34,4.331]
[1732582571633,12.82134134,236.4,236.34,0.1]
[1732582572134,12.82134134,236.4,236.34,4.3311]
[1732582573729,12.82134134,236.42,236.34,4.3311]
[1732582576435,12.82134134,236.4,236.34,4.3311]
[1732582579934,12.82134134,236.42,236.34,4.3311]
[1732582581636,12.82134134,236.36,236.34,0.1]
[1732582582629,12.82134134,236.38,236.34,0.1]
[1732582582831,12.82134134,236.4,236.34,0.1]
[1732582584243,14.93634134,236.4,236.34,0.1]
[1732582584949,12.82134134,236.4,236.34,0.1]
[1732582585668,12.82134134,236.42,236.34,4.331]
[1732582586339,12.82134134,236.4,236.34,4.331]
[1732582586641,12.82134134,236.42,236.34,4.331]
[1732582586940,12.82134134,236.42,236.35,12.82134134]
[1732582587446,12.82134134,236.44,236.36,4.2308]
[1732582589345,22.0941,236.51,236.36,4.2308]
[1732582589346,12.82134134,236.42,236.36,4.2308]
[1732582589742,12.82134134,236.42,236.34,4.331]
[1732582592756,12.82134134,236.44,236.35,12.82134134]
[1732582592962,12.82134134,236.46,236.35,12.82134134]
[1732582593257,12.82134134,236.51,236.43,12.82134134]
[1732582593637,12.82134134,236.51,236.43,16.81276333]
[1732582594237,12.82134134,236.51,236.43,4.2295]
[1732582596255,12.82134134,236.51,236.41,43.71184134]
[1732582596439,12.82134134,236.47,236.41,30.8905]
[1732582597448,12.82134134,236.45,236.41,30.8905]
[1732582598162,12.82134134,236.47,236.41,30.8905]
[1732582598363,12.82134134,236.47,236.41,35.1203]
[1732582599958,12.82134134,236.47,236.41,30.8905]
[1732582600281,12.82134134,236.45,236.38,4.2304]
[1732582600769,12.82134134,236.43,236.38,4.2304]
[1732582602370,12.82134134,236.43,236.35,43.71184134]
[1732582602559,12.82134134,236.43,236.36,4.2308]
[1732582604774,12.82134134,236.41,236.35,35.1214]
[1732582605262,12.82134134,236.43,236.35,35.1214]
[1732582606777,12.82134134,236.43,236.34,12.92134134]
[1732582606778,12.82134134,236.38,236.34,0.1]
[1732582606973,23.776884,236.35,236.34,0.1]
[1732582607281,12.82134134,236.38,236.34,0.1]
[1732582608062,12.82134134,236.36,236.34,0.1]
[1732582614292,8.26098839,236.36,236.34,0.1]
[1732582616093,8.26098839,236.38,236.34,0.1]
[1732582620079,28.26098839,236.35,236.34,0.1]
[1732582621193,52.03787239,236.35,236.34,0.1]
[1732582622086,54.15337239,236.35,236.34,0.1]
[1732582622506,30.37648839,236.35,236.34,0.1]
[1732582623597,20.0,236.35,236.34,0.1]
[1732582623798,158.3611,236.44,236.34,0.1]
[1732582623799,2.1149,236.41,236.34,0.1]
[1732582623980,8.26098839,236.39,236.34,0.1]
[1732582625175,8.26098839,236.37,236.34,0.1]
[1732582627496,8.26098839,236.35,236.34,0.1]
[1732582629007,2.1153,236.37,236.34,0.1]
[1732582629175,8.26098839,236.35,236.34,0.1]
[1732582632878,10.37648839,236.35,236.34,0.1]
[1732582638001,134.5,236.45,236.34,0.1]
[1732582638306,8.26098839,236.41,236.34,4.3311]
[1732582639294,8.26098839,236.4,236.34,0.1]
[1732582639709,20.0,236.44,236.34,0.1]
[1732582640015,8.26098839,236.39,236.34,0.1]
[1732582641914,22.1147,236.43,236.34,0.1]
[1732582642212,8.26098839,236.4,236.34,0.1]
[1732582643016,8.26098839,236.41,236.34,4.3311]
[1732582643709,20.0,236.43,236.34,4.3311]
[1732582643919,8.26098839,236.42,236.34,4.3311]
[1732582646099,10.37578839,236.42,236.34,4.3311]
[1732582646425,8.26098839,236.4,236.34,0.1]
[1732582648201,8.26098839,236.4,236.34,4.331]
[1732582651328,10.37578839,236.42,236.34,4.331]
[1732582652317,6.57632366,236.5,236.39,8.26098839]
[1732582652537,8.26098839,236.49,236.41,8.26098839]
[1732582653021,8.26098839,236.47,236.39,8.26098839]
[1732582653426,10.37538839,236.47,236.39,12.49118839]
[1732582656629,8.26098839,236.41,236.35,4.231]
[1732582657825,8.26098839,236.43,236.35,12.49198839]
[1732582658410,2.1146,236.45,236.35,12.49198839]
[1732582658606,8.26098839,236.44,236.35,12.49198839]
[1732582662011,8.26098839,236.42,236.35,4.231]
[1732582662829,2.1143,236.48,236.35,12.49198839]
[1732582663035,8.26098839,236.44,236.37,8.26098839]
[1732582663937,8.26098839,236.44,236.38,4.2304]
[1732582665616,8.26098839,236.44,236.35,12.49198839]
[1732582666030,8.26098839,236.44,236.35,4.231]
[1732582666031,8.26098839,236.4,236.35,4.231]
[1732582666231,8.26098839,236.38,236.34,4.3311]
[1732582666639,8.26098839,236.38,236.34,0.1]
[1732582667532,8.26098839,236.36,236.34,0.1]
[1732582670548,2.1151,236.39,236.34,0.1]
[1732582670728,8.26098839,236.36,236.34,0.1]
[1732582673972,10.37638839,236.36,236.34,0.1]
[1732582679073,8.26098839,236.35,236.34,0.1]
[1732582680182,10.37648839,236.35,236.34,0.1]
[1732582680855,34.15337239,236.35,236.34,0.1]
[1732582684565,25.892384,236.35,236.34,0.1]
[1732582684769,34.15337239,236.35,236.34,0.1]
[1732582688869,8.26098839,236.26,236.22,8.7318]
[1732582689871,8.26098839,236.26,236.19,8.26098839]
[1732582690701,8.26098839,236.28,236.19,12.49478839]
[1732582690874,2.1162,236.27,236.19,12.49478839]
[1732582691792,8.26098839,236.26,236.19,4.2338]
[1732582694269,134.5,236.34,236.19,4.2338]
[1732582694270,20.0,236.31,236.2,8.26098839]
[1732582694605,8.26098839,236.3,236.2,8.26098839]
[1732582695293,8.26098839,236.3,236.21,4.2335]
[1732582695597,8.26098839,236.3,236.22,8.26098839]
[1732582696399,8.26098839,236.25,236.18,24.54698839]
[1732582696578,8.26098839,236.29,236.2,8.26098839]
[1732582696892,8.26098839,236.29,236.18,16.286]
[1732582696893,8.26098839,236.29,236.22,8.26098839]
[1732582697866,8.26098839,236.29,236.2,8.26098839]
[1732582698570,8.26098839,236.27,236.19,4.2337]
[1732582699599,8.26098839,236.29,236.2,8.26098839]
[1732582700179,8.26098839,236.27,236.19,4.2337]
[1732582701201,8.26098839,236.25,236.19,4.2337]
[1732582703005,8.26098839,236.23,236.17,0.4899952]
[1732582703383,10.37738839,236.25,236.17,0.4899952]
[1732582703901,10.37738839,236.25,236.17,4.7240952]
[1732582704402,8.26098839,236.25,236.17,4.7240952]
[1732582704903,8.26098839,236.27,236.19,8.26098839]
[1732582705287,8.26098839,236.27,236.17,12.98508359]
[1732582705691,8.26098839,236.23,236.17,4.7240952]
[1732582706086,8.26098839,236.25,236.17,12.98508359]
[1732582707209,8.26098839,236.27,236.17,23.57058359]
[1732582707408,8.26098839,236.27,236.19,8.26098839]
[1732582707590,2.1158,236.31,236.21,8.26098839]
[1732582707795,8.26098839,236.28,236.19,8.26098839]
[1732582708612,8.26098839,236.28,236.2,4.2337]
[1732582714623,8.26098839,236.28,236.21,8.26098839]
[1732582714799,8.26098839,236.3,236.21,8.26098839]
[1732582715327,8.26098839,236.3,236.22,4.2333]
[1732582718926,8.26098839,236.28,236.22,4.2333]
[1732582723933,8.26098839,236.28,236.19,8.26098839]
[1732582724253,8.26098839,236.28,236.2,4.2337]
[1732582724841,10.37708839,236.28,236.2,4.2337]
[1732582728533,10.37708839,236.28,236.19,12.49478839]
[1732582729654,10.37708839,236.28,236.19,8.26098839]
[1732582730147,8.26098839,236.26,236.17,8.75098359]
[1732582730657,2.1164,236.25,236.17,12.98508359]
[1732582733534,8.26098839,236.24,236.17,0.4899952]
[1732582733763,8.26098839,236.19,236.17,0.4899952]
[1732582735248,8.26098839,236.19,236.07,6.5133]
[1732582735249,23.776884,236.14,236.04,1.58382947]
[1732582735451,8.26098839,236.05,235.95,4.2381]
[1732582735631,8.26098839,236.05,235.97,4.2378]
[1732582736261,8.26098839,236.05,235.96,8.26098839]
[1732582736648,8.26098839,236.03,235.96,8.26098839]
[1732582737139,8.26098839,236.01,235.92,8.26098839]
[1732582737343,23.776884,236.05,235.92,8.26098839]
[1732582737643,8.26098839,236.03,235.96,8.26098839]
[1732582738236,8.26098839,236.03,235.91,4.2389]
[1732582738237,8.26098839,236.03,235.94,8.26098839]
[1732582738436,8.26098839,236.03,235.93,8.75098359]
[1732582738745,8.26098839,236.01,235.93,8.75098359]
[1732582739963,8.26098839,235.99,235.93,0.4899952]
[1732582741266,8.26098839,235.97,235.93,0.4899952]
[1732582741649,15.9726,236.05,235.93,0.4899952]
[1732582741841,2.1184,236.03,235.93,0.4899952]
[1732582742169,8.26098839,236.0,235.93,0.4899952]
[1732582742345,2.1184,236.03,235.93,0.4899952]
[1732582742549,8.26098839,236.0,235.93,0.4899952]
[1732582742949,8.26098839,235.98,235.93,0.4899952]
[1732582745343,2.1188,235.98,235.93,0.4899952]
[1732582745548,8.26098839,235.96,235.93,0.4899952]
[1732582748076,8.26098839,235.94,235.93,0.4899952]
[1732582752271,32.03787239,235.94,235.93,0.4899952]
[1732582752861,65.08182595,235.94,235.93,0.4899952]
[1732582753373,32.03787239,235.94,235.93,0.4899952]
[1732582754389,65.08182595,235.94,235.93,0.4899952]
[1732582756381,20.0,235.9,235.77,27.2849]
[1732582756583,8.26098839,235.83,235.77,27.2849]
[1732582757195,8.26098839,235.79,235.7,4.2426]
[1732582757494,8.26098839,235.79,235.71,8.26098839]
[1732582757696,8.26098839,235.82,235.73,7.76098839]
[1732582758304,8.26098839,235.82,235.74,4.2419]
[1732582760094,8.26098839,235.82,235.75,8.38647839]
[1732582760298,8.26098839,235.82,235.76,4.2416]
[1732582760801,10.38118839,235.82,235.73,12.50308839]
[1732582763704,2.12,235.85,235.76,8.26098839]
[1732582763911,8.26098839,235.83,235.76,8.26098839]
[1732582764992,8.26098839,235.83,235.76,12.50238839]
[1732582766182,8.26098839,235.81,235.74,8.26098839]
[1732582766387,8.26098839,235.81,235.72,8.26098839]
[1732582767381,8.26098839,235.81,235.73,4.2421]
[1732582767976,8.26098839,235.81,235.74,8.26098839]
[1732582769495,8.26098839,235.81,235.74,12.50288839]
[1732582773590,10.38128839,235.81,235.74,8.26098839]
[1732582773813,8.26098839,235.78,235.7,12.50358839]
[1732582774905,8.26098839,235.8,235.72,8.26098839]
[1732582775910,8.26098839,235.8,235.73,4.2421]
[1732582777413,10.38138839,235.8,235.72,8.26098839]
[1732582777627,8.26098839,235.78,235.7,12.50358839]
[1732582779216,8.26098839,235.76,235.69,0.4899952]
[1732582780418,8.26098839,235.74,235.69,4.7327952]
[1732582780612,8.26098839,235.76,235.69,12.99378359]
[1732582781003,23.776884,235.84,235.69,12.99378359]
[1732582781198,8.26098839,235.78,235.69,12.99378359]
[1732582782427,8.26098839,235.76,235.69,12.99378359]
[1732582782798,8.26098839,235.76,235.69,4.7327952]
[1732582786806,10.38178839,235.76,235.69,0.4899952]
[1732582787007,8.26098839,235.74,235.69,0.4899952]
[1732582789625,10.38198839,235.74,235.69,0.4899952]
[1732582790425,8.26098839,235.74,235.69,0.4899952]
[1732582790629,8.26098839,235.7,235.69,0.4899952]
[1732582791125,15.9409,235.73,235.69,0.4899952]
[1732582791333,8.26098839,235.7,235.69,0.4899952]
[1732582791500,15.9409,235.73,235.69,0.4899952]
[1732582791699,8.26098839,235.7,235.69,0.4899952]
[1732582792738,10.38228839,235.7,235.69,0.4899952]
[1732582798221,2.1213,235.7,235.69,0.4899952]
[1732582798541,10.38228839,235.7,235.69,0.4899952]
[1732582798766,15.9409,235.73,235.69,0.4899952]
[1732582798922,8.26098839,235.74,235.69,0.4899952]
[1732582800249,6.3536912,235.78,235.69,12.99368359]
[1732582800625,8.26098839,235.77,235.69,12.99368359]
[1732582801137,8.26098839,235.77,235.69,12.49368359]
[1732582801336,8.26098839,235.75,235.69,12.49368359]
[1732582802851,8.26098839,235.75,235.63,14.8535]
[1732582803141,8.26098839,235.69,235.63,4.2439]
[1732582803471,8.26098839,235.69,235.62,26.2906]
[1732582804132,8.26098839,235.71,235.63,8.26098839]
[1732582805018,8.26098839,235.73,235.65,8.26098839]
[1732582807039,8.26098839,235.75,235.67,8.26098839]
[1732582808543,8.26098839,235.75,235.68,4.243]
[1732582809636,15.9409,235.8,235.54,15.7979]
[1732582809637,8.26098839,235.69,235.54,15.7979]
[1732582809836,8.26098839,235.67,235.54,20.0433]
[1732582810045,8.26098839,235.67,235.56,8.26098839]
[1732582810742,10.38258839,235.67,235.58,8.26098839]
[1732582811247,8.26098839,235.67,235.58,8.26098839]
[1732582812256,8.26098839,235.67,235.57,4.245]
[1732582812257,8.26098839,235.69,235.6,8.26098839]
[1732582812445,8.26098839,235.69,235.62,8.26098839]
[1732582812637,8.26098839,235.71,235.62,8.26098839]
[1732582812843,8.26098839,235.73,235.64,8.26098839]
[1732582813140,8.26098839,235.71,235.63,4.2439]
[1732582813359,8.26098839,235.71,235.62,12.50508839]
[1732582814038,2.121,235.74,235.62,12.50508839]
[1732582814239,8.26098839,235.71,235.62,12.50508839]
[1732582814462,8.26098839,235.71,235.62,4.2441]
[1732582814646,8.26098839,235.71,235.63,8.26098839]
[1732582815037,8.26098839,235.73,235.63,8.26098839]
[1732582815241,2.1206,235.78,235.67,8.26098839]
[1732582815445,2.1206,235.78,235.63,0.12549]
[1732582815446,17.82625027,235.8,235.69,8.26098839]
[1732582815653,7.15566988,235.85,235.71,8.26098839]
[1732582815855,8.69632366,235.84,235.71,8.26098839]
[1732582816065,8.26098839,235.8,235.71,8.26098839]
[1732582816445,12.97073779,235.79,235.71,17.21303779]
[1732582817246,12.97073779,235.81,235.71,17.21303779]
[1732582817460,12.97073779,235.81,235.73,12.97073779]
[1732582817647,2.1202,235.83,235.71,4.2423]
[1732582817648,12.97073779,235.83,235.75,12.97073779]
[1732582818162,12.97073779,235.85,235.75,12.97073779]
[1732582818369,12.97073779,235.85,235.77,12.97073779]
[1732582818570,12.97073779,235.83,235.73,12.97073779]
[1732582818750,12.97073779,235.81,235.73,17.21263779]
[1732582819455,12.97073779,235.81,235.73,12.97073779]
[1732582819642,12.97073779,235.83,235.73,12.97073779]
[1732582820053,12.97073779,235.85,235.75,12.97073779]
[1732582820245,12.97073779,235.85,235.72,10.5968]
[1732582820246,12.97073779,235.85,235.77,12.97073779]
[1732582820448,12.97073779,235.85,235.78,4.2412]
[1732582820668,12.97073779,235.89,235.81,12.97073779]
[1732582820866,15.9979,235.93,235.81,12.97073779]
[1732582820867,12.97073779,235.91,235.81,12.97073779]
[1732582821064,12.97073779,235.91,235.83,12.97073779]
[1732582821269,2.1189,235.97,235.85,12.97073779]
[1732582821447,12.97073779,235.96,235.87,12.97073779]
[1732582821843,12.97073779,235.92,235.83,6.3546]
[1732582822549,12.97073779,235.92,235.84,4.2401]
[1732582822759,12.97073779,235.92,235.84,17.21083779]
[1732582823469,12.97073779,235.9,235.84,4.2401]
[1732582823668,12.97073779,235.86,235.79,12.97073779]
[1732582823878,12.97073779,235.86,235.79,17.21173779]
[1732582824061,12.97073779,235.86,235.77,19.32533779]
[1732582824267,12.97073779,235.84,235.77,19.32533779]
[1732582824578,12.97073779,235.86,235.77,23.56663779]
[1732582825065,12.97073779,235.88,235.79,12.97073779]
[1732582825871,12.97073779,235.92,235.83,12.97073779]
[1732582826076,12.97073779,235.94,235.85,12.97073779]
[1732582826556,12.97073779,235.94,235.86,4.2398]
[1732582830269,12.97073779,235.96,235.87,12.97073779]
[1732582830992,12.97073779,235.96,235.89,12.97073779]
[1732582831189,12.97073779,235.98,235.89,12.97073779]
[1732582831377,12.97073779,235.99,235.89,12.97073779]
[1732582831762,12.97073779,235.99,235.91,12.97073779]
[1732582832568,12.97073779,235.95,235.88,6.6203]
[1732582832763,12.97073779,235.95,235.88,10.8596]
[1732582833393,12.97073779,235.97,235.89,13.09622779]
[1732582833693,12.97073779,236.02,235.94,12.97073779]
[1732582834077,15.08903779,236.04,235.94,12.97073779]
[1732582834483,12.97073779,236.02,235.94,12.97073779]
[1732582834792,12.97073779,236.02,235.95,4.2381]
[1732582834986,12.97073779,236.04,235.96,12.97073779]
[1732582835376,12.97073779,236.06,235.98,12.97073779]
[1732582835594,12.97073779,236.08,236.0,12.97073779]
[1732582835783,12.97073779,236.1,236.02,12.97073779]
[1732582836685,12.97073779,236.1,236.03,4.2367]
[1732582837403,2.1172,236.16,236.03,4.2367]
[1732582837404,12.97073779,236.08,236.03,4.2367]
[1732582837607,12.97073779,236.06,235.99,4.2374]
[1732582837978,12.97073779,236.04,235.99,4.2374]
[1732582838986,12.97073779,236.04,235.98,6.6203]
[1732582839307,12.97073779,236.04,235.98,10.8579]
[1732582839805,12.97073779,236.04,235.98,6.6203]
[1732582840014,12.97073779,236.02,235.96,19.6524]
[1732582840503,12.97073779,236.02,235.96,19.6525]
[1732582840689,12.97073779,236.06,235.98,12.97073779]
[1732582840887,12.97073779,236.04,235.96,32.62323779]
[1732582843206,12.97073779,236.06,235.98,12.97073779]
[1732582843407,12.97073779,236.08,236.0,12.97073779]
[1732582844112,12.97073779,236.06,235.98,12.97073779]
[1732582844286,12.97073779,236.04,235.96,32.62323779]
[1732582847018,12.97073779,236.06,235.98,17.20823779]
[1732582847620,12.97073779,236.08,236.0,12.97073779]
[1732582847799,20.34232079,236.15,236.02,12.97073779]
[1732582847800,12.97073779,236.1,236.02,12.97073779]
[1732582848111,12.97073779,236.12,236.04,12.97073779]
[1732582849208,12.97073779,236.12,236.05,4.2363]
[1732582850412,12.97073779,236.1,236.03,4.2366]
[1732582850599,12.97073779,236.08,236.02,6.2196]
[1732582850997,12.97073779,236.08,235.99,4.2373]
[1732582851215,22.97073779,236.16,235.96,38.84273779]
[1732582851415,12.97073779,236.04,235.96,38.84273779]
[1732582852804,12.97073779,236.08,235.98,12.97073779]
[1732582852997,12.97073779,236.06,235.98,12.97073779]
[1732582854399,12.97073779,236.06,235.99,4.2374]
[1732582855197,12.97073779,236.06,235.97,4.2376]
[1732582855396,12.97073779,236.06,235.98,12.97073779]
[1732582856316,12.97073779,236.06,235.99,4.2374]
[1732582856819,12.97073779,236.06,235.96,21.6342]
[1732582856820,12.97073779,236.04,235.96,21.6342]
[1732582857209,12.97073779,236.04,235.96,34.60493779]
[1732582857798,12.97073779,236.04,235.96,38.84283779]
[1732582858623,12.97073779,236.06,235.96,38.84283779]
[1732582859001,12.97073779,236.06,235.98,12.97073779]
[1732582859809,12.97073779,236.06,235.98,17.20823779]
[1732582860408,12.97073779,236.06,235.96,38.84273779]
[1732582860706,12.97073779,236.04,235.96,38.84273779]
[1732582862716,12.97073779,236.06,235.98,12.97073779]
[1732582862905,12.97073779,236.06,235.96,38.84273779]
[1732582863415,15.08883779,236.06,235.96,38.84273779]
[1732582863614,12.97073779,236.04,235.96,38.84273779]
[1732582863808,12.97073779,236.02,235.96,21.6342]
[1732582864405,12.97073779,236.0,235.9,35.87103779]
[1732582864819,12.97073779,235.98,235.9,35.87103779]
[1732582865228,12.97073779,235.98,235.9,22.9003]
[1732582865621,12.97073779,235.98,235.9,27.1393]
[1732582868028,12.97073779,235.98,235.9,40.11003779]
[1732582869347,12.97073779,236.0,235.9,40.11003779]
[1732582870531,12.97073779,235.98,235.9,40.11003779]
[1732582871235,12.97073779,236.0,235.9,40.11003779]
[1732582871609,15.08933779,236.0,235.9,40.11003779]
[1732582872134,12.97073779,236.02,235.94,12.97073779]
[1732582873012,12.97073779,236.04,235.96,12.97073779]
[1732582874226,12.97073779,236.04,235.96,17.20873779]
[1732582874440,12.97073779,236.06,235.96,17.20873779]
[1732582875640,12.97073779,236.06,235.98,12.97073779]
[1732582875829,12.97073779,236.1,236.03,12.97073779]
[1732582876132,15.08813779,236.14,236.05,12.97073779]
[1732582876331,12.97073779,236.14,236.05,12.97073779]
[1732582876538,12.97073779,236.14,236.07,12.97073779]
[1732582876712,15.71299237,236.16,236.07,12.97073779]
[1732582876910,12.97073779,236.16,236.09,12.97073779]
[1732582877529,12.97073779,236.16,236.1,4.2354]
[1732582877732,12.97073779,236.18,236.11,12.97073779]